[Event "*** Titled Tuesday 3|2 Blitz"]
[Site "Chess.com"]
[Date "2016.03.01"]
[Round "3"]
[White "MITerryble"]
[Black "VSERGUEI"]
[Result "1/2-1/2"]
[WhiteElo "2619"]
[BlackElo "2470"]
[TimeControl "180+2"]
[EndTime "12:10:42 PST"]
[Termination "Game drawn by repetition"]

1. d4 {[%clk 0:03:01.9]} 1... d5 {[%clk 0:03:00.5]} 2. Nf3 {[%clk 0:03:03.1]}
2... Nf6 {[%clk 0:03:01]} 3. c4 {[%clk 0:03:04.2]} 3... c6 {[%clk 0:03:02.2]} 4.
e3 {[%clk 0:03:01.8]} 4... Bf5 {[%clk 0:03:01.9]} 5. Nc3 {[%clk 0:03:02.1]} 5...
e6 {[%clk 0:03:03]} 6. Nh4 {[%clk 0:03:03.3]} 6... Bg6 {[%clk 0:03:04.1]} 7. Qb3
{[%clk 0:02:54.3]} 7... Qb6 {[%clk 0:03:02.4]} 8. Nxg6 {[%clk 0:02:54.9]} 8...
hxg6 {[%clk 0:03:02.6]} 9. Qc2 {[%clk 0:02:55.2]} 9... Nbd7 {[%clk 0:03:02.3]}
10. g3 {[%clk 0:02:51.1]} 10... Be7 {[%clk 0:03:01.5]} 11. a3 {[%clk 0:02:40]}
11... Rc8 {[%clk 0:02:52.8]} 12. c5 {[%clk 0:02:39.2]} 12... Qc7 {[%clk
0:02:53]} 13. f4 {[%clk 0:02:40.7]} 13... b6 {[%clk 0:02:51.9]} 14. b4 {[%clk
0:02:41.1]} 14... a5 {[%clk 0:02:52.8]} 15. Rb1 {[%clk 0:02:35.4]} 15... axb4
{[%clk 0:02:52.4]} 16. axb4 {[%clk 0:02:36]} 16... Ra8 {[%clk 0:02:53.2]} 17.
Bg2 {[%clk 0:02:33.7]} 17... O-O {[%clk 0:02:52]} 18. Bd2 {[%clk 0:02:25.2]}
18... b5 {[%clk 0:02:51.6]} 19. Bf3 {[%clk 0:02:21.6]} 19... Ra3 {[%clk
0:02:49.7]} 20. h4 {[%clk 0:02:21.1]} 20... Rfa8 {[%clk 0:02:49.5]} 21. Kf2
{[%clk 0:02:15.3]} 21... R8a6 {[%clk 0:02:32]} 22. g4 {[%clk 0:02:13.2]} 22...
Ne4+ {[%clk 0:02:25]} 23. Bxe4 {[%clk 0:01:50.5]} 23... dxe4 {[%clk 0:02:24.1]}
24. g5 {[%clk 0:01:52]} 24... f5 {[%clk 0:02:19.6]} 25. gxf6 {[%clk 0:01:05.5]}
25... Nxf6 {[%clk 0:02:19.5]} 26. Nxe4 {[%clk 0:01:06.4]} 26... Ra2 {[%clk
0:02:17.9]} 27. Nxf6+ {[%clk 0:01:07.3]} 27... Bxf6 {[%clk 0:02:18.5]} 28. Rb2
{[%clk 0:01:07.6]} 28... Rxb2 {[%clk 0:02:17]} 29. Qxb2 {[%clk 0:01:09.5]} 29...
Qd7 {[%clk 0:02:18.1]} 30. Qb3 {[%clk 0:01:06.6]} 30... Qd5 {[%clk 0:02:18.6]}
31. Qxd5 {[%clk 0:01:07.3]} 31... exd5 {[%clk 0:02:19.5]} 32. Ke2 {[%clk
0:00:36]} 32... Ra2 {[%clk 0:02:18.1]} 33. Kd3 {[%clk 0:00:36.2]} 33... Ra3+
{[%clk 0:02:17.1]} 34. Bc3 {[%clk 0:00:36.1]} 34... Kh7 {[%clk 0:02:12.8]} 35.
Kc2 {[%clk 0:00:25.8]} 35... Kh6 {[%clk 0:02:10.6]} 36. Kb2 {[%clk 0:00:24.3]}
36... Ra8 {[%clk 0:02:07.7]} 37. Rg1 {[%clk 0:00:19.3]} 37... Kh5 {[%clk
0:02:07.6]} 38. Be1 {[%clk 0:00:18.4]} 38... Re8 {[%clk 0:02:01.6]} 39. Bf2
{[%clk 0:00:17.1]} 39... Bxd4+ {[%clk 0:02:02.2]} 40. exd4 {[%clk 0:00:19]}
40... Re2+ {[%clk 0:02:03]} 41. Kc3 {[%clk 0:00:20.9]} 41... Rxf2 {[%clk
0:02:04]} 42. Rg5+ {[%clk 0:00:22.5]} 42... Kh6 {[%clk 0:02:04.4]} 43. Re5
{[%clk 0:00:24]} 43... Rf3+ {[%clk 0:02:05.6]} 44. Kd2 {[%clk 0:00:23.5]} 44...
Rxf4 {[%clk 0:02:06.6]} 45. Ke3 {[%clk 0:00:25.1]} 45... Rxh4 {[%clk 0:02:06.9]}
46. Re6 {[%clk 0:00:25.3]} 46... Rh3+ {[%clk 0:02:07.7]} 47. Kd2 {[%clk
0:00:17.2]} 47... Rb3 {[%clk 0:02:02.6]} 48. Rxc6 {[%clk 0:00:17.5]} 48... Rxb4
{[%clk 0:02:03.7]} 49. Kc3 {[%clk 0:00:18.4]} 49... Rc4+ {[%clk 0:02:03.6]} 50.
Kd3 {[%clk 0:00:19.2]} 50... b4 {[%clk 0:02:04.9]} 51. Rd6 {[%clk 0:00:17.3]}
51... Rc3+ {[%clk 0:02:05.9]} 52. Kd2 {[%clk 0:00:18.4]} 52... Rc4 {[%clk
0:02:06.1]} 53. Kd3 {[%clk 0:00:18.5]} 53... Rc3+ {[%clk 0:01:59.1]} 54. Kd2
{[%clk 0:00:19.7]} 54... Kg5 {[%clk 0:01:53.5]} 55. Rxd5+ {[%clk 0:00:18.8]}
55... Kf4 {[%clk 0:01:54.7]} 56. Re5 {[%clk 0:00:14.6]} 56... g5 {[%clk
0:01:52.6]} 57. Re1 {[%clk 0:00:14.6]} 57... g4 {[%clk 0:01:51.9]} 58. Rb1
{[%clk 0:00:15.9]} 58... g3 {[%clk 0:01:38.8]} 59. Rxb4 {[%clk 0:00:16]} 59...
g2 {[%clk 0:01:39.8]} 60. Rb1 {[%clk 0:00:15.7]} 60... Rf3 {[%clk 0:01:39.8]}
61. Rg1 {[%clk 0:00:15.3]} 61... Kg3 {[%clk 0:01:40.8]} 62. c6 {[%clk
0:00:12.8]} 62... Rf1 {[%clk 0:01:41.8]} 63. Rxg2+ {[%clk 0:00:13.5]} 63... Kxg2
{[%clk 0:01:42.5]} 64. c7 {[%clk 0:00:14.2]} 64... Rf8 {[%clk 0:01:35.5]} 65. d5
{[%clk 0:00:15.3]} 65... Rc8 {[%clk 0:01:35.9]} 66. d6 {[%clk 0:00:16.4]} 66...
g5 {[%clk 0:01:35.2]} 67. d7 {[%clk 0:00:13.1]} 67... Rxc7 {[%clk 0:01:35.9]}
68. d8=Q {[%clk 0:00:14.6]} 68... Rc5 {[%clk 0:01:36.9]} 69. Qd6 {[%clk
0:00:09.7]} 69... Rf5 {[%clk 0:01:35.3]} 70. Ke3 {[%clk 0:00:07.6]} 70... g4
{[%clk 0:01:33.7]} 71. Qd2+ {[%clk 0:00:07.9]} 71... Kh3 {[%clk 0:01:31.2]} 72.
Ke4 {[%clk 0:00:04.5]} 72... Rf3 {[%clk 0:01:31.8]} 73. Qh6+ {[%clk 0:00:05.4]}
73... Kg2 {[%clk 0:01:28.4]} 74. Qh5 {[%clk 0:00:05.5]} 74... Kg3 {[%clk
0:01:26.6]} 75. Qe5+ {[%clk 0:00:06.3]} 75... Kg2 {[%clk 0:01:26.6]} 76. Qb2+
{[%clk 0:00:06.2]} 76... Kg3 {[%clk 0:01:26.9]} 77. Qc1 {[%clk 0:00:06.6]} 77...
Kg2 {[%clk 0:01:26.1]} 78. Qd2+ {[%clk 0:00:07.3]} 78... Kg3 {[%clk 0:01:27]}
79. Qe1+ {[%clk 0:00:08.1]} 79... Kg2 {[%clk 0:01:28.1]} 80. Qe2+ {[%clk
0:00:08.6]} 80... Kg3 {[%clk 0:01:29.1]} 81. Ke5 {[%clk 0:00:09.1]} 81... Rf2
{[%clk 0:01:27]} 82. Qe1 {[%clk 0:00:08.9]} 82... Kg2 {[%clk 0:01:27.5]} 83.
Qe4+ {[%clk 0:00:09.7]} 83... Kg3 {[%clk 0:01:28.3]} 84. Qg6 {[%clk 0:00:08.5]}
84... Rf3 {[%clk 0:01:26.5]} 85. Ke4 {[%clk 0:00:09.6]} 85... Rf2 {[%clk
0:01:27.1]} 86. Ke3 {[%clk 0:00:09.1]} 86... Rf3+ {[%clk 0:01:27.8]} 87. Ke2
{[%clk 0:00:10.7]} 87... Rf2+ {[%clk 0:01:28.6]} 88. Ke1 {[%clk 0:00:10.7]}
88... Rf3 {[%clk 0:01:29.7]} 89. Qg5 {[%clk 0:00:11.2]} 89... Kh3 {[%clk
0:01:26.6]} 90. Qh5+ {[%clk 0:00:12]} 90... Kg3 {[%clk 0:01:27.5]} 91. Qh1
{[%clk 0:00:11.4]} 91... Rf4 {[%clk 0:01:22.7]} 92. Qg1+ {[%clk 0:00:11.3]}
92... Kh3 {[%clk 0:01:23.4]} 93. Qe3+ {[%clk 0:00:08.7]} 93... Rf3 {[%clk
0:01:23.8]} 94. Qe5 {[%clk 0:00:09.8]} 94... Kg2 {[%clk 0:01:23.3]} 95. Ke2
{[%clk 0:00:09.8]} 95... Rf2+ {[%clk 0:01:23.8]} 96. Ke3 {[%clk 0:00:11.2]}
96... g3 {[%clk 0:01:22.6]} 97. Qd5+ {[%clk 0:00:10.1]} 97... Kh2 {[%clk
0:01:22.7]} 98. Qh5+ {[%clk 0:00:10.5]} 98... Kg2 {[%clk 0:01:23.2]} 99. Qd5+
{[%clk 0:00:10.8]} 99... Kh2 {[%clk 0:01:24]} 100. Qg5 {[%clk 0:00:11.3]} 100...
Kg2 {[%clk 0:01:24.7]} 101. Qg4 {[%clk 0:00:10.9]} 101... Kh2 {[%clk 0:01:25.1]}
102. Qh4+ {[%clk 0:00:11.8]} 102... Kg2 {[%clk 0:01:26.2]} 103. Qe4+ {[%clk
0:00:12.6]} 103... Kh2 {[%clk 0:01:27.1]} 104. Qa8 {[%clk 0:00:13.1]} 104... Kg1
{[%clk 0:01:25.2]} 105. Qa1+ {[%clk 0:00:09]} 105... Kg2 {[%clk 0:01:21.7]} 106.
Qd1 {[%clk 0:00:09.9]} 106... Kh2 {[%clk 0:01:21.8]} 107. Qg4 {[%clk 0:00:09.1]}
107... Kg2 {[%clk 0:01:22.7]} 108. Qh4 {[%clk 0:00:09.7]} 108... Rf3+ {[%clk
0:01:22.8]} 109. Ke2 {[%clk 0:00:09.5]} 109... Rf2+ {[%clk 0:01:23.9]} 110. Ke1
{[%clk 0:00:10.8]} 110... Rf1+ {[%clk 0:01:25.1]} 111. Ke2 {[%clk 0:00:11.4]}
111... Rf2+ {[%clk 0:01:26.4]} 112. Ke3 {[%clk 0:00:12.9]} 112... Rf3+ {[%clk
0:01:27.6]} 113. Ke4 {[%clk 0:00:12.7]} 113... Rf2 {[%clk 0:01:28.7]} 114. Ke3
{[%clk 0:00:11.2]} 114... Rf3+ {[%clk 0:01:29.3]} 1/2-1/2

[Event "*** Titled Tuesday 3|2 Blitz"]
[Site "Chess.com"]
[Date "2016.03.01"]
[Round "4"]
[White "Iwannabetheguy"]
[Black "punkmonkZ"]
[Result "0-1"]
[WhiteElo "2019"]
[BlackElo "1961"]
[TimeControl "180+2"]
[EndTime "12:17:28 PST"]
[Termination "punkmonkZ won by checkmate"]

1. e4 {[%clk 0:03:01.9]} 1... e5 {[%clk 0:03:00.4]} 2. Nf3 {[%clk 0:03:02.9]}
2... Nc6 {[%clk 0:03:01.5]} 3. Bc4 {[%clk 0:03:03.9]} 3... Nf6 {[%clk
0:03:01.7]} 4. d4 {[%clk 0:03:04]} 4... exd4 {[%clk 0:03:01.5]} 5. e5 {[%clk
0:03:05]} 5... d5 {[%clk 0:03:02.3]} 6. Bb5 {[%clk 0:03:06.2]} 6... Ne4 {[%clk
0:03:02.7]} 7. Nxd4 {[%clk 0:03:07.2]} 7... Bd7 {[%clk 0:03:03.9]} 8. Bxc6
{[%clk 0:03:07.5]} 8... bxc6 {[%clk 0:03:03.3]} 9. O-O {[%clk 0:03:08.1]} 9...
Bc5 {[%clk 0:03:03.5]} 10. Nb3 {[%clk 0:02:57.2]} 10... Bb6 {[%clk 0:03:03.9]}
11. N1d2 {[%clk 0:02:58.5]} 11... Bf5 {[%clk 0:02:54.6]} 12. Nxe4 {[%clk
0:02:55.3]} 12... Bxe4 {[%clk 0:02:55.1]} 13. Be3 {[%clk 0:02:52.6]} 13... O-O
{[%clk 0:02:54.9]} 14. Nc5 {[%clk 0:02:45.6]} 14... Bxc5 {[%clk 0:02:44.7]} 15.
Bxc5 {[%clk 0:02:46]} 15... Re8 {[%clk 0:02:46.3]} 16. f4 {[%clk 0:02:40]} 16...
f5 {[%clk 0:02:41.7]} 17. c3 {[%clk 0:02:33.6]} 17... Re6 {[%clk 0:02:41.4]} 18.
b4 {[%clk 0:02:32.9]} 18... a5 {[%clk 0:02:39.3]} 19. a3 {[%clk 0:02:32.3]}
19... axb4 {[%clk 0:02:34.4]} 20. axb4 {[%clk 0:02:32.7]} 20... Rg6 {[%clk
0:02:35.1]} 21. g3 {[%clk 0:02:19.2]} 21... h6 {[%clk 0:02:34.4]} 22. Rxa8
{[%clk 0:02:18.5]} 22... Qxa8 {[%clk 0:02:34.7]} 23. Qa1 {[%clk 0:02:19.1]}
23... Qb8 {[%clk 0:02:31.9]} 24. Qa7 {[%clk 0:02:18.8]} 24... Qb5 {[%clk
0:02:32.6]} 25. Qa2 {[%clk 0:01:40.1]} 25... Qd3 {[%clk 0:02:31.6]} 26. Bd4
{[%clk 0:01:34.4]} 26... Rxg3+ {[%clk 0:02:15.6]} 27. hxg3 {[%clk 0:01:24]}
27... Qxg3+ {[%clk 0:02:16.1]} 28. Qg2 {[%clk 0:01:22.9]} 28... Qxg2# {[%clk
0:02:17]} 0-1

[Event "*** Titled Tuesday 3|2 Blitz"]
[Site "Chess.com"]
[Date "2016.03.01"]
[Round "4"]
[White "jup1978"]
[Black "Abdodi"]
[Result "0-1"]
[WhiteElo "2245"]
[BlackElo "1925"]
[TimeControl "180+2"]
[EndTime "12:17:30 PST"]
[Termination "Abdodi won by resignation"]

1. e4 {[%clk 0:03:01.9]} 1... c6 {[%clk 0:03:00.3]} 2. d4 {[%clk 0:03:02]} 2...
d5 {[%clk 0:03:01.2]} 3. Nd2 {[%clk 0:03:03.9]} 3... dxe4 {[%clk 0:03:01.9]} 4.
Nxe4 {[%clk 0:03:05.8]} 4... Bf5 {[%clk 0:03:03.3]} 5. Ng3 {[%clk 0:03:07.3]}
5... Bg6 {[%clk 0:03:04.6]} 6. N1e2 {[%clk 0:03:08.9]} 6... Nd7 {[%clk
0:03:00.8]} 7. Nf4 {[%clk 0:03:10.8]} 7... Ngf6 {[%clk 0:02:56.7]} 8. Bc4 {[%clk
0:03:12.1]} 8... e6 {[%clk 0:02:52.9]} 9. c3 {[%clk 0:03:13.2]} 9... Nd5 {[%clk
0:02:50.9]} 10. Nxg6 {[%clk 0:03:12.9]} 10... hxg6 {[%clk 0:02:50.6]} 11. Qf3
{[%clk 0:03:14.2]} 11... N7f6 {[%clk 0:02:48.4]} 12. Bg5 {[%clk 0:03:14.1]}
12... Be7 {[%clk 0:02:44.2]} 13. Bb3 {[%clk 0:03:15.3]} 13... Qc7 {[%clk
0:02:40.1]} 14. Bc2 {[%clk 0:03:15]} 14... O-O-O {[%clk 0:02:37.8]} 15. a4
{[%clk 0:03:15.8]} 15... Qd6 {[%clk 0:02:16]} 16. O-O {[%clk 0:03:16.7]} 16...
Nh5 {[%clk 0:02:10.1]} 17. Rfe1 {[%clk 0:03:16.8]} 17... Bxg5 {[%clk 0:02:09.6]}
18. Ne4 {[%clk 0:03:18.2]} 18... Qe7 {[%clk 0:02:07.6]} 19. a5 {[%clk
0:03:16.7]} 19... Bf6 {[%clk 0:02:05.8]} 20. a6 {[%clk 0:03:17.3]} 20... b6
{[%clk 0:02:04.9]} 21. c4 {[%clk 0:03:17.4]} 21... Nb4 {[%clk 0:02:05.1]} 22.
Ba4 {[%clk 0:03:16.6]} 22... Bxd4 {[%clk 0:02:03.4]} 23. Qb3 {[%clk 0:03:06.7]}
23... Nf6 {[%clk 0:01:55.2]} 24. Nxf6 {[%clk 0:03:03.7]} 24... gxf6 {[%clk
0:01:53.5]} 25. c5 {[%clk 0:03:00.2]} 25... Bxc5 {[%clk 0:01:49.1]} 26. Re2
{[%clk 0:02:51.4]} 26... Qd6 {[%clk 0:01:49.4]} 27. g3 {[%clk 0:02:49.8]} 27...
Rh5 {[%clk 0:01:37.3]} 28. Rc1 {[%clk 0:02:50]} 28... Rd5 {[%clk 0:01:37.1]} 29.
Qf3 {[%clk 0:02:29.6]} 29... Rd1+ {[%clk 0:01:36.8]} 30. Rxd1 {[%clk 0:02:30.9]}
30... Qxd1+ {[%clk 0:01:37.5]} 31. Kg2 {[%clk 0:02:32.8]} 31... Qd5 {[%clk
0:01:36.6]} 32. Qxd5 {[%clk 0:02:31.9]} 0-1

[Event "*** Titled Tuesday 3|2 Blitz"]
[Site "Chess.com"]
[Date "2016.03.01"]
[Round "4"]
[White "Drags95"]
[Black "GeorgMeier"]
[Result "0-1"]
[WhiteElo "2259"]
[BlackElo "2748"]
[TimeControl "180+2"]
[EndTime "12:17:31 PST"]
[Termination "GeorgMeier won on time"]

1. d4 {[%clk 0:03:01.9]} 1... e6 {[%clk 0:03:01.2]} 2. c4 {[%clk 0:02:56.9]}
2... Nf6 {[%clk 0:03:02.6]} 3. Nf3 {[%clk 0:02:56.8]} 3... d5 {[%clk 0:03:03.4]}
4. Nc3 {[%clk 0:02:44.9]} 4... dxc4 {[%clk 0:03:04.4]} 5. e3 {[%clk 0:02:40.7]}
5... a6 {[%clk 0:03:05.1]} 6. Bxc4 {[%clk 0:02:36.7]} 6... b5 {[%clk 0:03:06]}
7. Bb3 {[%clk 0:02:36.7]} 7... Bb7 {[%clk 0:03:07.2]} 8. O-O {[%clk 0:02:08.5]}
8... Nbd7 {[%clk 0:03:01.2]} 9. Qe2 {[%clk 0:01:50]} 9... c5 {[%clk 0:03:02.2]}
10. Rd1 {[%clk 0:01:24.8]} 10... Qc7 {[%clk 0:03:03.2]} 11. e4 {[%clk
0:00:58.3]} 11... cxd4 {[%clk 0:02:48.2]} 0-1

[Event "*** Titled Tuesday 3|2 Blitz"]
[Site "Chess.com"]
[Date "2016.03.01"]
[Round "4"]
[White "Mischuk_D"]
[Black "Blitzstream"]
[Result "1/2-1/2"]
[WhiteElo "2530"]
[BlackElo "2454"]
[TimeControl "180+2"]
[EndTime "12:19:47 PST"]
[Termination "Game drawn by repetition"]

1. e4 {[%clk 0:03:01.9]} 1... d5 {[%clk 0:03:00]} 2. exd5 {[%clk 0:03:01.7]}
2... Qxd5 {[%clk 0:03:01.9]} 3. Nc3 {[%clk 0:03:02.9]} 3... Qa5 {[%clk
0:03:01.6]} 4. Nf3 {[%clk 0:03:04.2]} 4... Nf6 {[%clk 0:03:00.5]} 5. Rb1 {[%clk
0:03:05.4]} 5... Bg4 {[%clk 0:02:54.1]} 6. b4 {[%clk 0:03:05.7]} 6... Qh5 {[%clk
0:02:54.5]} 7. Be2 {[%clk 0:03:06.5]} 7... e6 {[%clk 0:02:55.5]} 8. h3 {[%clk
0:03:06.2]} 8... Bd6 {[%clk 0:02:55]} 9. Nb5 {[%clk 0:03:02.2]} 9... Nc6 {[%clk
0:02:13.3]} 10. Nxd6+ {[%clk 0:03:02.9]} 10... cxd6 {[%clk 0:02:13.4]} 11. O-O
{[%clk 0:03:03.9]} 11... Bxf3 {[%clk 0:01:45.6]} 12. Bxf3 {[%clk 0:03:04]} 12...
Qg6 {[%clk 0:01:47.2]} 13. b5 {[%clk 0:03:03.4]} 13... Nd8 {[%clk 0:01:45.3]}
14. Ba3 {[%clk 0:03:01.2]} 14... d5 {[%clk 0:01:22.4]} 15. d3 {[%clk 0:03:01.1]}
15... Nd7 {[%clk 0:00:51.3]} 16. c4 {[%clk 0:02:58.2]} 16... d4 {[%clk
0:00:52.4]} 17. Be4 {[%clk 0:02:54.9]} 17... f5 {[%clk 0:00:52.4]} 18. Bf3
{[%clk 0:02:55.3]} 18... Kf7 {[%clk 0:00:52]} 19. Re1 {[%clk 0:02:53.4]} 19...
Re8 {[%clk 0:00:51.4]} 20. c5 {[%clk 0:02:53.8]} 20... Rc8 {[%clk 0:00:43]} 21.
Rc1 {[%clk 0:02:54.1]} 21... Qf6 {[%clk 0:00:21.5]} 22. Qa4 {[%clk 0:02:45.4]}
22... Ne5 {[%clk 0:00:18.4]} 23. Be2 {[%clk 0:02:46.1]} 23... f4 {[%clk
0:00:13.9]} 24. f3 {[%clk 0:02:46.2]} 24... a6 {[%clk 0:00:09.1]} 25. bxa6
{[%clk 0:02:44]} 25... bxa6 {[%clk 0:00:11]} 26. Qxa6 {[%clk 0:02:41.4]} 26...
Ndc6 {[%clk 0:00:12.6]} 27. Qa4 {[%clk 0:02:39.9]} 27... Ra8 {[%clk 0:00:13.8]}
28. Qb3 {[%clk 0:02:38.9]} 28... Reb8 {[%clk 0:00:15.3]} 29. Qc2 {[%clk
0:02:26.9]} 29... Rxa3 {[%clk 0:00:16.2]} 30. Rb1 {[%clk 0:02:28.6]} 30... Rc3
{[%clk 0:00:16.5]} 31. Qd2 {[%clk 0:02:28.4]} 31... Rxb1 {[%clk 0:00:17.4]} 32.
Rxb1 {[%clk 0:02:29.5]} 32... Kg6 {[%clk 0:00:19]} 33. Ra1 {[%clk 0:02:29.6]}
33... Ra3 {[%clk 0:00:19.9]} 34. Qb2 {[%clk 0:02:29.7]} 34... Rc3 {[%clk
0:00:20.4]} 35. a4 {[%clk 0:02:30.2]} 35... Rxc5 {[%clk 0:00:21.1]} 36. Rc1
{[%clk 0:02:29.1]} 36... Rxc1+ {[%clk 0:00:21.7]} 37. Qxc1 {[%clk 0:02:30.2]}
37... Qe7 {[%clk 0:00:23.4]} 38. Qxf4 {[%clk 0:02:29.7]} 38... Qg5 {[%clk
0:00:23.1]} 39. Qe4+ {[%clk 0:02:28.7]} 39... Qf5 {[%clk 0:00:22.9]} 40. Qh4
{[%clk 0:02:24.2]} 40... Qg5 {[%clk 0:00:24.3]} 41. Qe4+ {[%clk 0:02:24.8]}
41... Qf5 {[%clk 0:00:25.2]} 42. Qh4 {[%clk 0:02:25.5]} 42... Qg5 {[%clk
0:00:20.6]} 43. Qe4+ {[%clk 0:02:26.1]} 43... Qf5 {[%clk 0:00:18]} 44. Qh4
{[%clk 0:02:26.7]} 1/2-1/2

[Event "*** Titled Tuesday 3|2 Blitz"]
[Site "Chess.com"]
[Date "2016.03.01"]
[Round "4"]
[White "Lupul_Cenusiu"]
[Black "Danirod"]
[Result "0-1"]
[WhiteElo "2473"]
[BlackElo "2408"]
[TimeControl "180+2"]
[EndTime "12:20:43 PST"]
[Termination "Danirod won by resignation"]

1. d4 {[%clk 0:03:01.9]} 1... Nf6 {[%clk 0:02:59.7]} 2. Nf3 {[%clk 0:03:03.1]}
2... e6 {[%clk 0:03:01.1]} 3. c4 {[%clk 0:03:04.2]} 3... Bb4+ {[%clk 0:03:01.6]}
4. Nbd2 {[%clk 0:03:04.3]} 4... d5 {[%clk 0:03:01.5]} 5. a3 {[%clk 0:03:05.6]}
5... Be7 {[%clk 0:03:02.3]} 6. Qc2 {[%clk 0:03:05.7]} 6... O-O {[%clk
0:03:03.3]} 7. e3 {[%clk 0:03:06.2]} 7... Nbd7 {[%clk 0:03:04.5]} 8. b3 {[%clk
0:03:04.6]} 8... c5 {[%clk 0:03:05.5]} 9. Bb2 {[%clk 0:03:05]} 9... b6 {[%clk
0:03:06.4]} 10. dxc5 {[%clk 0:03:04.7]} 10... Nxc5 {[%clk 0:03:07.3]} 11. Be2
{[%clk 0:03:03.8]} 11... Bb7 {[%clk 0:03:08.3]} 12. O-O {[%clk 0:03:04.3]} 12...
Rc8 {[%clk 0:03:08.7]} 13. Rfd1 {[%clk 0:03:05.1]} 13... Nce4 {[%clk 0:03:04.1]}
14. Nxe4 {[%clk 0:03:04.4]} 14... Nxe4 {[%clk 0:03:05.1]} 15. Bd3 {[%clk
0:03:02.6]} 15... f5 {[%clk 0:02:59.2]} 16. Qe2 {[%clk 0:02:56.2]} 16... Bf6
{[%clk 0:02:59.2]} 17. Nd4 {[%clk 0:02:50.2]} 17... Qe7 {[%clk 0:02:56.4]} 18.
a4 {[%clk 0:02:42.8]} 18... g6 {[%clk 0:02:54.7]} 19. Ba3 {[%clk 0:02:42.9]}
19... Nc5 {[%clk 0:02:52.9]} 20. a5 {[%clk 0:02:38.5]} 20... Rfe8 {[%clk
0:02:47.5]} 21. Nb5 {[%clk 0:02:33.8]} 21... Bxa1 {[%clk 0:02:36.1]} 22. Rxa1
{[%clk 0:02:34.5]} 22... a6 {[%clk 0:02:24.3]} 23. Na7 {[%clk 0:02:30.1]} 23...
Ra8 {[%clk 0:02:16.6]} 24. axb6 {[%clk 0:02:30.5]} 24... Qd6 {[%clk 0:02:17.4]}
25. cxd5 {[%clk 0:02:12.5]} 25... Qxd5 {[%clk 0:02:14.3]} 26. Qf1 {[%clk
0:01:56.3]} 26... Nxd3 {[%clk 0:02:10.3]} 27. Rd1 {[%clk 0:01:56.9]} 27... Qxb3
{[%clk 0:02:11.3]} 28. Rxd3 {[%clk 0:01:57]} 28... Qxb6 {[%clk 0:02:12.8]} 29.
Rd7 {[%clk 0:01:57.6]} 29... Rxa7 {[%clk 0:02:10.9]} 30. Qa1 {[%clk 0:01:33]}
30... e5 {[%clk 0:02:11.7]} 31. Qa2+ {[%clk 0:01:34]} 31... Kh8 {[%clk
0:02:05.1]} 32. Rxh7+ {[%clk 0:00:55.1]} 32... Kxh7 {[%clk 0:02:05.7]} 33. Qf7+
{[%clk 0:00:55.9]} 33... Kh6 {[%clk 0:02:04.5]} 34. Bf8+ {[%clk 0:00:56.9]}
34... Rxf8 {[%clk 0:01:57]} 35. Qxf8+ {[%clk 0:00:57.6]} 35... Kh5 {[%clk
0:01:12]} 36. Qh8+ {[%clk 0:00:57.4]} 36... Kg5 {[%clk 0:01:10.7]} 37. h4+
{[%clk 0:00:56.7]} 37... Kg4 {[%clk 0:01:12.3]} 38. Kh2 {[%clk 0:00:56.6]} 38...
Bxg2 {[%clk 0:01:11.6]} 39. Kxg2 {[%clk 0:00:44.8]} 39... Qc6+ {[%clk
0:01:10.5]} 40. Kh2 {[%clk 0:00:31.4]} 40... Qf3 {[%clk 0:01:07.8]} 41. Qxe5
{[%clk 0:00:30.2]} 41... Qxf2+ {[%clk 0:01:09.2]} 42. Kh1 {[%clk 0:00:31.3]}
42... Qf1+ {[%clk 0:01:08.4]} 43. Kh2 {[%clk 0:00:32.7]} 43... Qh3+ {[%clk
0:01:10]} 44. Kg1 {[%clk 0:00:33.8]} 44... Qg3+ {[%clk 0:01:11.7]} 0-1

[Event "*** Titled Tuesday 3|2 Blitz"]
[Site "Chess.com"]
[Date "2016.03.01"]
[Round "4"]
[White "KamilPlichta"]
[Black "MattyDPerrine"]
[Result "0-1"]
[WhiteElo "2413"]
[BlackElo "2258"]
[TimeControl "180+2"]
[EndTime "12:21:01 PST"]
[Termination "MattyDPerrine won by checkmate"]

1. g3 {[%clk 0:02:56.2]} 1... c5 {[%clk 0:03:00.3]} 2. Bg2 {[%clk 0:02:57.5]}
2... Nc6 {[%clk 0:02:59]} 3. c4 {[%clk 0:02:58.7]} 3... g6 {[%clk 0:03:00.1]} 4.
Nf3 {[%clk 0:02:55.8]} 4... Bg7 {[%clk 0:03:01.5]} 5. Nc3 {[%clk 0:02:56.8]}
5... e6 {[%clk 0:03:02.6]} 6. O-O {[%clk 0:02:57.5]} 6... Nge7 {[%clk
0:03:03.8]} 7. b3 {[%clk 0:02:58]} 7... d5 {[%clk 0:03:04.7]} 8. Bb2 {[%clk
0:02:55.9]} 8... O-O {[%clk 0:02:56.6]} 9. cxd5 {[%clk 0:02:57.1]} 9... exd5
{[%clk 0:02:57.5]} 10. d3 {[%clk 0:02:48.6]} 10... b6 {[%clk 0:02:52.4]} 11. e3
{[%clk 0:02:45.5]} 11... Ba6 {[%clk 0:02:49.5]} 12. Re1 {[%clk 0:02:45.1]} 12...
Nb4 {[%clk 0:02:47.2]} 13. Bf1 {[%clk 0:02:44.1]} 13... Rc8 {[%clk 0:02:42.7]}
14. d4 {[%clk 0:02:44.8]} 14... c4 {[%clk 0:02:40.4]} 15. a3 {[%clk 0:02:38.8]}
15... Nbc6 {[%clk 0:02:20.4]} 16. bxc4 {[%clk 0:02:38.9]} 16... dxc4 {[%clk
0:02:21.3]} 17. e4 {[%clk 0:02:31.9]} 17... Nxd4 {[%clk 0:02:16.1]} 18. e5
{[%clk 0:02:32.3]} 18... Nb3 {[%clk 0:02:08.7]} 19. Rb1 {[%clk 0:02:32.1]} 19...
Bb7 {[%clk 0:02:01.5]} 20. Bg2 {[%clk 0:02:32.8]} 20... a6 {[%clk 0:01:57]} 21.
Qd6 {[%clk 0:02:26.2]} 21... Nf5 {[%clk 0:01:52.8]} 22. Qxd8 {[%clk 0:02:17.3]}
22... Rfxd8 {[%clk 0:01:53.3]} 23. Rbd1 {[%clk 0:02:12.3]} 23... Nc5 {[%clk
0:01:48]} 24. g4 {[%clk 0:02:03.1]} 24... Ne7 {[%clk 0:01:32.9]} 25. Rd6 {[%clk
0:01:50]} 25... Nd3 {[%clk 0:01:33.9]} 26. Re2 {[%clk 0:01:38.1]} 26... Bxf3
{[%clk 0:00:52]} 27. Bxf3 {[%clk 0:01:31.7]} 27... Nxb2 {[%clk 0:00:48.6]} 28.
Rxd8+ {[%clk 0:01:19.6]} 28... Rxd8 {[%clk 0:00:49.4]} 29. Rxb2 {[%clk
0:01:21.2]} 29... Bxe5 {[%clk 0:00:50.4]} 30. Re2 {[%clk 0:01:20.5]} 30... f6
{[%clk 0:00:36.4]} 31. Na4 {[%clk 0:01:13.6]} 31... b5 {[%clk 0:00:22.7]} 32.
Nc5 {[%clk 0:01:14.5]} 32... a5 {[%clk 0:00:23.1]} 33. g5 {[%clk 0:01:09.7]}
33... Kf7 {[%clk 0:00:21.1]} 34. Bg4 {[%clk 0:01:10.3]} 34... Rd4 {[%clk
0:00:18.4]} 35. Be6+ {[%clk 0:01:11.1]} 35... Kg7 {[%clk 0:00:19.8]} 36. gxf6+
{[%clk 0:01:11.6]} 36... Kxf6 {[%clk 0:00:20.4]} 37. Bh3 {[%clk 0:01:04.3]}
37... Nf5 {[%clk 0:00:16.2]} 38. Ne4+ {[%clk 0:01:03.9]} 38... Ke7 {[%clk
0:00:12.3]} 39. Nc3 {[%clk 0:01:03.6]} 39... Kf6 {[%clk 0:00:08.7]} 40. Nxb5
{[%clk 0:01:04.7]} 40... Rd1+ {[%clk 0:00:09.5]} 41. Kg2 {[%clk 0:01:05]} 41...
Nh4# {[%clk 0:00:10.1]} 0-1